[Event "*** SCC Grand Prix: Titled Tuesday Blitz"]
[Site "Chess.com"]
[Date "2020.07.14"]
[Round "3"]
[White "tigra"]
[Black "timator"]
[Result "1-0"]
[WhiteElo "2821"]
[BlackElo "2598"]
[TimeControl "180+1"]
[EndTime "10:30:15 PDT"]
[Termination "tigra won by resignation"]

1. e4 {[%clk 0:03:00.9]} 1... c5 {[%clk 0:03:00.2]} 2. Nf3 {[%clk 0:02:56.8]}
2... e6 {[%clk 0:03:00.5]} 3. d4 {[%clk 0:02:55]} 3... cxd4 {[%clk 0:03:01.4]}
4. Nxd4 {[%clk 0:02:55.9]} 4... Nc6 {[%clk 0:02:58.1]} 5. Nc3 {[%clk 0:02:56.5]}
5... Qc7 {[%clk 0:02:55.2]} 6. Be2 {[%clk 0:02:53]} 6... a6 {[%clk 0:02:49.1]}
7. O-O {[%clk 0:02:52.9]} 7... b5 {[%clk 0:02:47.9]} 8. Be3 {[%clk 0:02:50.4]}
8... Nf6 {[%clk 0:02:47.7]} 9. a3 {[%clk 0:02:47.2]} 9... Bb7 {[%clk 0:02:46.6]}
10. Nb3 {[%clk 0:02:37.1]} 10... Ne5 {[%clk 0:02:32.4]} 11. Kh1 {[%clk
0:02:13.9]} 11... Be7 {[%clk 0:02:27.5]} 12. f3 {[%clk 0:02:12.9]} 12... O-O
{[%clk 0:02:26.7]} 13. Qe1 {[%clk 0:02:11.2]} 13... d5 {[%clk 0:02:26]} 14. exd5
{[%clk 0:02:08.2]} 14... Nxd5 {[%clk 0:02:26.9]} 15. Bd4 {[%clk 0:02:05.4]}
15... Rfd8 {[%clk 0:02:15]} 16. Nxd5 {[%clk 0:01:54.6]} 16... Rxd5 {[%clk
0:02:03.8]} 17. c3 {[%clk 0:01:53.6]} 17... Ng6 {[%clk 0:02:01.9]} 18. Bg1
{[%clk 0:01:19.6]} 18... Rad8 {[%clk 0:01:57.1]} 19. Rd1 {[%clk 0:01:16.6]}
19... Rxd1 {[%clk 0:01:57.1]} 20. Bxd1 {[%clk 0:01:16.9]} 20... Bd5 {[%clk
0:01:57.5]} 21. Nd4 {[%clk 0:01:16.4]} 21... Bf6 {[%clk 0:01:52.6]} 22. Bc2
{[%clk 0:01:05.3]} 22... Bc4 {[%clk 0:01:49.8]} 23. Rf2 {[%clk 0:00:49.8]} 23...
Bxd4 {[%clk 0:01:49.3]} 24. cxd4 {[%clk 0:00:50.7]} 24... Ne7 {[%clk 0:01:39.7]}
25. Rd2 {[%clk 0:00:48]} 25... Bd5 {[%clk 0:01:39.9]} 26. Bf2 {[%clk 0:00:45]}
26... Rc8 {[%clk 0:01:39]} 27. h3 {[%clk 0:00:44.5]} 27... Ng6 {[%clk
0:01:29.2]} 28. Bg3 {[%clk 0:00:43.6]} 28... Qe7 {[%clk 0:01:20.6]} 29. Be4
{[%clk 0:00:40.3]} 29... Qd7 {[%clk 0:01:14.6]} 30. Kh2 {[%clk 0:00:40.3]} 30...
Ne7 {[%clk 0:00:55.8]} 31. Bf4 {[%clk 0:00:40.2]} 31... h6 {[%clk 0:00:49.1]}
32. Qg3 {[%clk 0:00:36.3]} 32... Bxe4 {[%clk 0:00:49.4]} 33. fxe4 {[%clk
0:00:35.4]} 33... Ng6 {[%clk 0:00:50]} 34. Bd6 {[%clk 0:00:31.5]} 34... h5
{[%clk 0:00:46.3]} 35. Bb4 {[%clk 0:00:26.6]} 35... h4 {[%clk 0:00:45.1]} 36.
Qd6 {[%clk 0:00:24.9]} 36... Qxd6+ {[%clk 0:00:35]} 37. Bxd6 {[%clk 0:00:25.8]}
37... f6 {[%clk 0:00:32.1]} 38. g3 {[%clk 0:00:23.5]} 38... Kf7 {[%clk
0:00:28.7]} 39. gxh4 {[%clk 0:00:23]} 39... Nxh4 {[%clk 0:00:29.6]} 40. Kg3
{[%clk 0:00:23.6]} 40... g5 {[%clk 0:00:28.3]} 41. Bc5 {[%clk 0:00:22.5]} 41...
Ng6 {[%clk 0:00:25.2]} 42. b4 {[%clk 0:00:22.4]} 42... Rd8 {[%clk 0:00:23.5]}
43. Ra2 {[%clk 0:00:22]} 43... Ne7 {[%clk 0:00:15.5]} 44. a4 {[%clk 0:00:21.3]}
44... Nc6 {[%clk 0:00:15.7]} 45. axb5 {[%clk 0:00:20.8]} 45... axb5 {[%clk
0:00:16.6]} 46. Rd2 {[%clk 0:00:18.7]} 46... Kg6 {[%clk 0:00:16.3]} 47. d5
{[%clk 0:00:18.5]} 47... Ne5 {[%clk 0:00:15.2]} 48. Kf2 {[%clk 0:00:17]} 48...
exd5 {[%clk 0:00:13]} 49. exd5 {[%clk 0:00:17.5]} 49... Kf5 {[%clk 0:00:13.3]}
50. Rd1 {[%clk 0:00:16.7]} 50... Ke4 {[%clk 0:00:11.9]} 51. Rd4+ {[%clk
0:00:16]} 51... Kf5 {[%clk 0:00:11.2]} 52. Ke3 {[%clk 0:00:16.9]} 52... Rd7
{[%clk 0:00:10.7]} 53. d6 {[%clk 0:00:16.8]} 53... Ke6 {[%clk 0:00:10.6]} 54. h4
{[%clk 0:00:16.1]} 54... gxh4 {[%clk 0:00:07.2]} 55. Rxh4 {[%clk 0:00:15.1]}
55... Rg7 {[%clk 0:00:07.8]} 56. Re4 {[%clk 0:00:14.3]} 56... Rg3+ {[%clk
0:00:07.9]} 57. Kf2 {[%clk 0:00:14]} 57... Rg7 {[%clk 0:00:08.2]} 58. Ke2 {[%clk
0:00:14.3]} 58... Rg4 {[%clk 0:00:07.3]} 59. Re3 {[%clk 0:00:13.4]} 59... Rg2+
{[%clk 0:00:07.2]} 60. Kd1 {[%clk 0:00:13.4]} 60... Rg4 {[%clk 0:00:08.1]} 61.
Kd2 {[%clk 0:00:13.3]} 61... Kd7 {[%clk 0:00:08.5]} 62. Kc2 {[%clk 0:00:13.3]}
62... Rg2+ {[%clk 0:00:08.6]} 63. Kc3 {[%clk 0:00:13.5]} 63... Rg4 {[%clk
0:00:09]} 64. Re2 {[%clk 0:00:13.7]} 64... Rg3+ {[%clk 0:00:09.1]} 65. Kc2
{[%clk 0:00:14.1]} 65... Rf3 {[%clk 0:00:08.4]} 66. Rh2 {[%clk 0:00:14.1]} 66...
Rg3 {[%clk 0:00:06.9]} 67. Rh7+ {[%clk 0:00:14]} 67... Kc6 {[%clk 0:00:05.3]}
68. Rc7+ {[%clk 0:00:14.5]} 68... Kd5 {[%clk 0:00:04.7]} 69. d7 {[%clk 0:00:15]}
69... Nxd7 {[%clk 0:00:02.7]} 70. Rxd7+ {[%clk 0:00:14.9]} 70... Ke6 {[%clk
0:00:03.6]} 71. Rd6+ {[%clk 0:00:15.1]} 71... Ke5 {[%clk 0:00:03.7]} 72. Rb6
{[%clk 0:00:15.1]} 72... f5 {[%clk 0:00:04.3]} 73. Bd6+ {[%clk 0:00:15.2]} 1-0

[Event "*** SCC Grand Prix: Titled Tuesday Blitz"]
[Site "Chess.com"]
[Date "2020.07.14"]
[Round "3"]
[White "keshka01"]
[Black "mortngabriel"]
[Result "1-0"]
[WhiteElo "2564"]
[BlackElo "2370"]
[TimeControl "180+1"]
[EndTime "10:30:16 PDT"]
[Termination "keshka01 won on time"]

1. e4 {[%clk 0:03:00.9]} 1... e5 {[%clk 0:02:57.7]} 2. Nf3 {[%clk 0:03:01]} 2...
Nc6 {[%clk 0:02:58.4]} 3. Bb5 {[%clk 0:03:01.6]} 3... a6 {[%clk 0:02:59]} 4. Ba4
{[%clk 0:03:02]} 4... Nf6 {[%clk 0:02:59.2]} 5. d3 {[%clk 0:03:01]} 5... Be7
{[%clk 0:02:59.7]} 6. Bxc6 {[%clk 0:02:33.6]} 6... bxc6 {[%clk 0:02:58]} 7. Nxe5
{[%clk 0:02:34.5]} 7... O-O {[%clk 0:02:58]} 8. O-O {[%clk 0:02:34.1]} 8... Bb7
{[%clk 0:02:58.3]} 9. Nf3 {[%clk 0:02:31.6]} 9... d5 {[%clk 0:02:58.6]} 10. e5
{[%clk 0:02:31.5]} 10... Nd7 {[%clk 0:02:58.7]} 11. d4 {[%clk 0:02:30.4]} 11...
c5 {[%clk 0:02:58.2]} 12. c3 {[%clk 0:02:30.5]} 12... f6 {[%clk 0:02:58.4]} 13.
exf6 {[%clk 0:02:05.8]} 13... Nxf6 {[%clk 0:02:40.2]} 14. Nbd2 {[%clk
0:02:01.4]} 14... cxd4 {[%clk 0:02:39.5]} 15. Nxd4 {[%clk 0:02:01.1]} 15... Qd7
{[%clk 0:02:34.1]} 16. Qe2 {[%clk 0:01:51.8]} 16... Bc8 {[%clk 0:02:33.6]} 17.
Re1 {[%clk 0:01:42.1]} 17... Bd6 {[%clk 0:02:33.6]} 18. N2f3 {[%clk 0:01:32.8]}
18... Re8 {[%clk 0:02:32.2]} 19. Qf1 {[%clk 0:01:29.6]} 19... Rxe1 {[%clk
0:02:31.2]} 20. Qxe1 {[%clk 0:01:29.6]} 20... c5 {[%clk 0:02:32.1]} 21. Nb3
{[%clk 0:01:28.5]} 21... a5 {[%clk 0:02:27.7]} 22. Be3 {[%clk 0:01:26.8]} 22...
Qc7 {[%clk 0:02:22.5]} 23. h3 {[%clk 0:00:49.6]} 23... a4 {[%clk 0:02:17.8]} 24.
Nbd2 {[%clk 0:00:49.7]} 24... a3 {[%clk 0:02:14.4]} 25. Rb1 {[%clk 0:00:41.9]}
25... axb2 {[%clk 0:02:13.8]} 26. Rxb2 {[%clk 0:00:42.8]} 26... Bf5 {[%clk
0:01:58]} 27. Nh4 {[%clk 0:00:35.2]} 27... Bd3 {[%clk 0:01:56.1]} 28. Ndf3
{[%clk 0:00:28.9]} 28... Ne4 {[%clk 0:01:42.8]} 29. Nf5 {[%clk 0:00:20.6]} 29...
Bf8 {[%clk 0:01:32.9]} 30. Ng3 {[%clk 0:00:19.9]} 30... Bd6 {[%clk 0:01:15.2]}
31. Nxe4 {[%clk 0:00:18.3]} 31... dxe4 {[%clk 0:01:14.4]} 32. Nd2 {[%clk
0:00:17.8]} 32... Qf7 {[%clk 0:01:02.5]} 33. Nb3 {[%clk 0:00:17.2]} 33... Rb8
{[%clk 0:00:53.2]} 34. Qd2 {[%clk 0:00:15.9]} 34... Qd5 {[%clk 0:00:47.2]} 35.
Nc1 {[%clk 0:00:11.9]} 35... Rf8 {[%clk 0:00:34]} 36. Rb6 {[%clk 0:00:11.8]}
36... Qe5 {[%clk 0:00:34.3]} 37. g3 {[%clk 0:00:10.5]} 37... Bc7 {[%clk
0:00:24.8]} 38. Rb7 {[%clk 0:00:09.3]} 38... Ba5 {[%clk 0:00:21.1]} 39. Nxd3
{[%clk 0:00:08.5]} 39... Qd5 {[%clk 0:00:16]} 40. Rb5 {[%clk 0:00:08.3]} 40...
exd3 {[%clk 0:00:04.7]} 41. Rxa5 {[%clk 0:00:08.6]} 41... Rc8 {[%clk 0:00:02.9]}
42. Rxc5 {[%clk 0:00:07.9]} 42... Rxc5 {[%clk 0:00:02.8]} 43. Bxc5 {[%clk
0:00:08.8]} 43... Qxc5 {[%clk 0:00:03.7]} 44. Qxd3 {[%clk 0:00:09.3]} 44... h6
{[%clk 0:00:04.4]} 45. Qd8+ {[%clk 0:00:08.8]} 45... Kh7 {[%clk 0:00:05]} 46.
Qd3+ {[%clk 0:00:09.7]} 46... Kg8 {[%clk 0:00:05.6]} 47. a4 {[%clk 0:00:10.4]}
47... Qa5 {[%clk 0:00:05.9]} 48. Qc4+ {[%clk 0:00:08.8]} 48... Kh7 {[%clk
0:00:05.8]} 49. Qb4 {[%clk 0:00:09.7]} 49... Qd5 {[%clk 0:00:04]} 50. a5 {[%clk
0:00:08.8]} 50... Qd1+ {[%clk 0:00:04.3]} 51. Kg2 {[%clk 0:00:09.2]} 51... Qd5+
{[%clk 0:00:04.6]} 52. Kh2 {[%clk 0:00:09.6]} 52... Qf3 {[%clk 0:00:04.8]} 53.
Qb6 {[%clk 0:00:09]} 53... Qxc3 {[%clk 0:00:03.5]} 54. a6 {[%clk 0:00:09.2]}
54... Qa3 {[%clk 0:00:03.4]} 55. a7 {[%clk 0:00:09.4]} 55... Qa2 {[%clk
0:00:03.3]} 56. Kg2 {[%clk 0:00:09.1]} 56... Qd5+ {[%clk 0:00:03.7]} 57. Kg1
{[%clk 0:00:09.3]} 57... Qd1+ {[%clk 0:00:04]} 58. Kh2 {[%clk 0:00:09.6]} 58...
Qa4 {[%clk 0:00:04.2]} 59. h4 {[%clk 0:00:07.6]} 59... Qa2 {[%clk 0:00:04.2]}
60. Kg2 {[%clk 0:00:07.3]} 60... h5 {[%clk 0:00:04.3]} 61. Qb7 {[%clk
0:00:06.5]} 1-0

[Event "*** SCC Grand Prix: Titled Tuesday Blitz"]
[Site "Chess.com"]
[Date "2020.07.14"]
[Round "3"]
[White "Legendinunknown"]
[Black "KaterynaLagno"]
[Result "1-0"]
[WhiteElo "2573"]
[BlackElo "2758"]
[TimeControl "180+1"]
[EndTime "10:30:19 PDT"]
[Termination "Legendinunknown won on time"]

1. d4 {[%clk 0:02:59.4]} 1... Nf6 {[%clk 0:02:59.6]} 2. c4 {[%clk 0:02:59.1]}
2... g6 {[%clk 0:02:59.7]} 3. Nc3 {[%clk 0:02:58.7]} 3... d5 {[%clk 0:03:00.3]}
4. cxd5 {[%clk 0:02:57.7]} 4... Nxd5 {[%clk 0:03:01.2]} 5. e4 {[%clk 0:02:57.9]}
5... Nxc3 {[%clk 0:03:01.4]} 6. bxc3 {[%clk 0:02:58.8]} 6... Bg7 {[%clk
0:03:01.4]} 7. Bc4 {[%clk 0:02:59.3]} 7... c5 {[%clk 0:03:00]} 8. Ne2 {[%clk
0:02:59.4]} 8... Nc6 {[%clk 0:03:00.1]} 9. Be3 {[%clk 0:02:57.9]} 9... O-O
{[%clk 0:03:00.7]} 10. h4 {[%clk 0:02:57.7]} 10... cxd4 {[%clk 0:02:45.8]} 11.
cxd4 {[%clk 0:02:57.6]} 11... Qa5+ {[%clk 0:02:45.8]} 12. Kf1 {[%clk 0:02:56.9]}
12... b6 {[%clk 0:02:42]} 13. h5 {[%clk 0:02:48.4]} 13... Ba6 {[%clk 0:02:38.8]}
14. Bxa6 {[%clk 0:02:42.5]} 14... Qxa6 {[%clk 0:02:39.7]} 15. Kg1 {[%clk
0:02:41]} 15... Rad8 {[%clk 0:02:31.7]} 16. hxg6 {[%clk 0:02:16.9]} 16... hxg6
{[%clk 0:02:14.6]} 17. f3 {[%clk 0:02:03.3]} 17... Nxd4 {[%clk 0:02:00.4]} 18.
Nxd4 {[%clk 0:02:01.8]} 18... e5 {[%clk 0:02:00.3]} 19. Qe2 {[%clk 0:01:53.6]}
19... Qa3 {[%clk 0:01:20.6]} 20. Nb3 {[%clk 0:01:50.2]} 20... Rd7 {[%clk
0:01:04.4]} 21. Rh3 {[%clk 0:01:10.3]} 21... Rfd8 {[%clk 0:01:01]} 22. Kf2
{[%clk 0:00:57.8]} 22... Qb4 {[%clk 0:00:43.5]} 23. Rah1 {[%clk 0:00:55.3]}
23... a5 {[%clk 0:00:43.6]} 24. Qe1 {[%clk 0:00:38.7]} 24... Qa3 {[%clk
0:00:39]} 25. Qe2 {[%clk 0:00:26.6]} 25... a4 {[%clk 0:00:38.3]} 26. Nc1 {[%clk
0:00:26.4]} 26... b5 {[%clk 0:00:34.3]} 27. Qxb5 {[%clk 0:00:20.2]} 27... Qc3
{[%clk 0:00:29.8]} 28. Re1 {[%clk 0:00:19.5]} 28... a3 {[%clk 0:00:25.5]} 29.
Rhh1 {[%clk 0:00:18.4]} 29... Qc2+ {[%clk 0:00:20.8]} 30. Re2 {[%clk 0:00:18.2]}
30... Qc3 {[%clk 0:00:20.5]} 31. Qb3 {[%clk 0:00:17.9]} 31... Qa5 {[%clk
0:00:19.9]} 32. Rhe1 {[%clk 0:00:16.9]} 32... Bf8 {[%clk 0:00:19.2]} 33. Rc2
{[%clk 0:00:17.1]} 33... Bb4 {[%clk 0:00:17.2]} 34. Rh1 {[%clk 0:00:17.5]} 34...
Bd2 {[%clk 0:00:16.5]} 35. Ne2 {[%clk 0:00:17.8]} 35... Bxe3+ {[%clk 0:00:15.5]}
36. Qxe3 {[%clk 0:00:18.7]} 36... Rd3 {[%clk 0:00:13.3]} 37. Qh6 {[%clk
0:00:18.2]} 37... Qb6+ {[%clk 0:00:13.9]} 38. Kg3 {[%clk 0:00:18.5]} 38... Qf6
{[%clk 0:00:14.6]} 39. Qh7+ {[%clk 0:00:18.8]} 39... Kf8 {[%clk 0:00:15.1]} 40.
Qh8+ {[%clk 0:00:19.5]} 40... Ke7 {[%clk 0:00:14.1]} 41. Qxf6+ {[%clk
0:00:18.2]} 41... Kxf6 {[%clk 0:00:15]} 42. Kf2 {[%clk 0:00:17.3]} 42... Rd2
{[%clk 0:00:13.8]} 43. Rhc1 {[%clk 0:00:18.2]} 43... Kg5 {[%clk 0:00:13.5]} 44.
Ke3 {[%clk 0:00:16.1]} 44... R2d3+ {[%clk 0:00:13.5]} 45. Kf2 {[%clk 0:00:16.3]}
45... Rd2 {[%clk 0:00:14.4]} 46. g3 {[%clk 0:00:15.3]} 46... f5 {[%clk
0:00:14.1]} 47. Ke1 {[%clk 0:00:15.5]} 47... R2d3 {[%clk 0:00:13.7]} 48. Rc3
{[%clk 0:00:15.3]} 48... fxe4 {[%clk 0:00:13.9]} 49. fxe4 {[%clk 0:00:15.2]}
49... Kg4 {[%clk 0:00:14]} 50. Rxd3 {[%clk 0:00:15.4]} 50... Rxd3 {[%clk
0:00:14.7]} 51. Rc5 {[%clk 0:00:16.1]} 51... Kf3 {[%clk 0:00:09.5]} 52. Nc1
{[%clk 0:00:15.2]} 52... Re3+ {[%clk 0:00:08.6]} 53. Kd2 {[%clk 0:00:15.5]}
53... Rxe4 {[%clk 0:00:09]} 54. Rc3+ {[%clk 0:00:15.7]} 54... Kf2 {[%clk
0:00:08.3]} 55. Rxa3 {[%clk 0:00:16.6]} 55... Rd4+ {[%clk 0:00:08.6]} 56. Rd3
{[%clk 0:00:16.6]} 56... Ra4 {[%clk 0:00:07.8]} 57. a3 {[%clk 0:00:16.3]} 57...
e4 {[%clk 0:00:08.1]} 58. Rb3 {[%clk 0:00:16]} 58... Rd4+ {[%clk 0:00:07.8]} 59.
Kc2 {[%clk 0:00:16.3]} 59... e3 {[%clk 0:00:06.8]} 60. Rd3 {[%clk 0:00:16.5]}
60... Rc4+ {[%clk 0:00:06.7]} 61. Rc3 {[%clk 0:00:16.7]} 61... Rd4 {[%clk
0:00:06.4]} 62. Kb3 {[%clk 0:00:16.4]} 62... e2 {[%clk 0:00:05.2]} 63. Nxe2
{[%clk 0:00:15.8]} 63... Kxe2 {[%clk 0:00:05.4]} 64. a4 {[%clk 0:00:16.7]} 64...
Rd1 {[%clk 0:00:03.6]} 65. a5 {[%clk 0:00:16.6]} 65... Ra1 {[%clk 0:00:03.6]}
66. Kb4 {[%clk 0:00:17]} 66... g5 {[%clk 0:00:03.5]} 67. Ra3 {[%clk 0:00:17.5]}
67... Rb1+ {[%clk 0:00:02.7]} 68. Kc5 {[%clk 0:00:17.8]} 68... Rb8 {[%clk
0:00:02.2]} 69. a6 {[%clk 0:00:17.8]} 69... g4 {[%clk 0:00:01.7]} 70. a7 {[%clk
0:00:18]} 70... Ra8 {[%clk 0:00:02.1]} 71. Kb6 {[%clk 0:00:18.6]} 71... Kf2
{[%clk 0:00:02.2]} 72. Kb7 {[%clk 0:00:18.9]} 72... Rf8 {[%clk 0:00:02.3]} 73.
a8=Q {[%clk 0:00:19]} 1-0

[Event "*** SCC Grand Prix: Titled Tuesday Blitz"]
[Site "Chess.com"]
[Date "2020.07.14"]
[Round "3"]
[White "coalescenet"]
[Black "UCantHandleDenker"]
[Result "0-1"]
[WhiteElo "2341"]
[BlackElo "2537"]
[TimeControl "180+1"]
[EndTime "10:30:24 PDT"]
[Termination "UCantHandleDenker won by resignation"]

1. d4 {[%clk 0:03:00.5]} 1... Nf6 {[%clk 0:02:58.2]} 2. c4 {[%clk 0:02:59.5]}
2... g6 {[%clk 0:02:56.8]} 3. Nc3 {[%clk 0:02:56.2]} 3... Bg7 {[%clk 0:02:56]}
4. Nf3 {[%clk 0:02:56.7]} 4... O-O {[%clk 0:02:55.1]} 5. Bg5 {[%clk 0:02:57]}
5... d6 {[%clk 0:02:53.6]} 6. e3 {[%clk 0:02:57.1]} 6... c5 {[%clk 0:02:52.6]}
7. Be2 {[%clk 0:02:57.1]} 7... h6 {[%clk 0:02:52]} 8. Bh4 {[%clk 0:02:56.9]}
8... Bf5 {[%clk 0:02:51.9]} 9. O-O {[%clk 0:02:56.5]} 9... Nbd7 {[%clk
0:02:50.8]} 10. Bd3 {[%clk 0:02:56.7]} 10... Bg4 {[%clk 0:02:46.6]} 11. h3
{[%clk 0:02:54.9]} 11... Bxf3 {[%clk 0:02:46]} 12. Qxf3 {[%clk 0:02:55]} 12...
cxd4 {[%clk 0:02:26.7]} 13. exd4 {[%clk 0:02:54.3]} 13... Qb6 {[%clk 0:02:27.1]}
14. Ne2 {[%clk 0:02:26.8]} 14... Rab8 {[%clk 0:02:07]} 15. Rab1 {[%clk
0:02:01.9]} 15... e5 {[%clk 0:02:06.2]} 16. Rfd1 {[%clk 0:01:40.9]} 16... Rbe8
{[%clk 0:02:03.9]} 17. dxe5 {[%clk 0:01:38.2]} 17... dxe5 {[%clk 0:01:55]} 18.
Bxf6 {[%clk 0:01:29.5]} 18... Nxf6 {[%clk 0:01:52.9]} 19. Nc3 {[%clk 0:01:29.8]}
19... Qb4 {[%clk 0:01:38.7]} 20. a3 {[%clk 0:01:15.2]} 20... Qb3 {[%clk
0:01:34.9]} 21. Qe2 {[%clk 0:01:12.8]} 21... Nh5 {[%clk 0:01:27.1]} 22. Bc2
{[%clk 0:01:07.4]} 22... Qb6 {[%clk 0:01:22.3]} 23. Ba4 {[%clk 0:01:06.1]} 23...
Nf4 {[%clk 0:01:12.7]} 24. Qe1 {[%clk 0:01:02.1]} 24... Rc8 {[%clk 0:01:05.8]}
25. Nd5 {[%clk 0:00:56.2]} 25... Nxd5 {[%clk 0:00:52.3]} 26. cxd5 {[%clk
0:00:56.7]} 26... Qd6 {[%clk 0:00:51]} 27. Qa5 {[%clk 0:00:41.1]} 27... a6
{[%clk 0:00:48.4]} 28. Bb3 {[%clk 0:00:39.1]} 28... Rc7 {[%clk 0:00:45.7]} 29.
Rbc1 {[%clk 0:00:35.1]} 29... Rfc8 {[%clk 0:00:44.8]} 30. Rxc7 {[%clk
0:00:34.8]} 30... Rxc7 {[%clk 0:00:45.4]} 31. h4 {[%clk 0:00:31.4]} 31... h5
{[%clk 0:00:43.3]} 32. Qa4 {[%clk 0:00:28.9]} 32... Bf6 {[%clk 0:00:41.8]} 33.
g3 {[%clk 0:00:26.5]} 33... Kg7 {[%clk 0:00:41.6]} 34. Qe4 {[%clk 0:00:24.5]}
34... Rc5 {[%clk 0:00:33.8]} 35. Ba2 {[%clk 0:00:23.3]} 35... b6 {[%clk
0:00:24.9]} 36. b4 {[%clk 0:00:20.5]} 36... Rc3 {[%clk 0:00:24.7]} 37. Rd3
{[%clk 0:00:18.8]} 37... Rc1+ {[%clk 0:00:23.9]} 38. Kg2 {[%clk 0:00:19.2]}
38... b5 {[%clk 0:00:23.4]} 39. Bb3 {[%clk 0:00:16.8]} 39... Bd8 {[%clk
0:00:22.1]} 40. Re3 {[%clk 0:00:15]} 40... Bc7 {[%clk 0:00:20.6]} 41. Re1 {[%clk
0:00:14.2]} 41... Rc3 {[%clk 0:00:19.2]} 42. Re3 {[%clk 0:00:13.9]} 42... Rc1
{[%clk 0:00:18.2]} 43. Re1 {[%clk 0:00:13.1]} 43... Rxe1 {[%clk 0:00:18.6]} 44.
Qxe1 {[%clk 0:00:12.5]} 44... Qb6 {[%clk 0:00:18.7]} 45. a4 {[%clk 0:00:11]}
45... bxa4 {[%clk 0:00:16.7]} 46. Bxa4 {[%clk 0:00:11.9]} 46... Bd6 {[%clk
0:00:17]} 47. Qe2 {[%clk 0:00:09.5]} 47... Qxb4 {[%clk 0:00:14.7]} 48. Qxa6
{[%clk 0:00:09.5]} 48... Qe4+ {[%clk 0:00:15]} 49. Kg1 {[%clk 0:00:09.3]} 49...
Qxd5 {[%clk 0:00:15.3]} 50. Bc6 {[%clk 0:00:07.6]} 50... Qd1+ {[%clk 0:00:14.4]}
51. Qf1 {[%clk 0:00:08.2]} 51... Qd4 {[%clk 0:00:14.3]} 52. Bg2 {[%clk
0:00:07.3]} 52... Bc5 {[%clk 0:00:14.4]} 53. Qe2 {[%clk 0:00:07.3]} 53... f5
{[%clk 0:00:12.3]} 54. Bf1 {[%clk 0:00:07.5]} 54... Qc3 {[%clk 0:00:11.5]} 55.
Kg2 {[%clk 0:00:07.7]} 55... Qd4 {[%clk 0:00:11.1]} 56. Qf3 {[%clk 0:00:08]}
56... e4 {[%clk 0:00:10.9]} 57. Qf4 {[%clk 0:00:08.1]} 57... Bd6 {[%clk
0:00:10.9]} 58. Qe3 {[%clk 0:00:07.7]} 58... Qxe3 {[%clk 0:00:10.5]} 59. fxe3
{[%clk 0:00:08.6]} 59... Bc5 {[%clk 0:00:11.4]} 60. Kf2 {[%clk 0:00:09.3]} 60...
Kf6 {[%clk 0:00:11.8]} 61. Ke2 {[%clk 0:00:09.9]} 61... g5 {[%clk 0:00:11.3]}
62. Kf2 {[%clk 0:00:05.8]} 62... Kg6 {[%clk 0:00:09.3]} 63. Be2 {[%clk
0:00:06.1]} 63... Kh6 {[%clk 0:00:08.6]} 64. Bd1 {[%clk 0:00:06.5]} 64... Kg6
{[%clk 0:00:05.2]} 65. Be2 {[%clk 0:00:06.4]} 65... gxh4 {[%clk 0:00:05.3]} 66.
gxh4 {[%clk 0:00:03.2]} 66... f4 {[%clk 0:00:05.7]} 67. Bc4 {[%clk 0:00:02.6]}
67... Bxe3+ {[%clk 0:00:06.6]} 68. Ke2 {[%clk 0:00:02.9]} 68... Bc5 {[%clk
0:00:06]} 69. Bd5 {[%clk 0:00:03]} 69... Kf5 {[%clk 0:00:05.7]} 70. Bf7 {[%clk
0:00:02.5]} 70... Be7 {[%clk 0:00:06.2]} 71. Bxh5 {[%clk 0:00:02.4]} 71... Bxh4
{[%clk 0:00:07.1]} 72. Kf1 {[%clk 0:00:01.5]} 72... Ke5 {[%clk 0:00:08]} 73. Ke2
{[%clk 0:00:02.3]} 73... Kd4 {[%clk 0:00:07.4]} 74. Bf7 {[%clk 0:00:02.9]} 74...
f3+ {[%clk 0:00:07]} 75. Kf1 {[%clk 0:00:03.8]} 75... e3 {[%clk 0:00:07.1]} 76.
Bb3 {[%clk 0:00:02.7]} 76... e2+ {[%clk 0:00:07]} 77. Kg1 {[%clk 0:00:03.6]}
77... e1=Q+ {[%clk 0:00:06.8]} 78. Kh2 {[%clk 0:00:04.5]} 78... Qg3+ {[%clk
0:00:07.1]} 0-1